Cogmind - Beta 13 @@@ ROGUE MODE // 2024.05.01 @ 00:54:20 Player: luckinvolved Result: Destroyed by Lightning with EMDS Performance ------------- Evolutions (4) 2000 Regions Visited (20) 4000 Robots Destroyed (229) 1145 Value Destroyed (10020) 10020 Prototype IDs (21) 420 Alien Tech Used (0) 0 Bonus (4600) 4600 TOTAL SCORE: 22185 Bonus ------- High Alert Combat Kills 248 Follower Combat Kills 828 Entered Garrisons 400 Used RIF Installer 2000 Network Hubs Disabled 200 Aligned with FarCom 300 Met Data Miner 300 Met R17 at Cetus 500 Friendly Fire -176 Cogmind --------- Core Integrity 0/850 Matter 167/300 Energy 73/100 System Corruption 4% Temperature Cool (9) Movement Core (50) Location -6/Hub_04(d) Parts ------- > --- POWER (1) -------- (None) > --- PROPULSION (4) --- (None) > --- UTILITY (7) ------ Enhanced Optical Array Recoil Stabilizer > --- WEAPON (3) ------- (None) > --- INVENTORY (5) ---- Light Fission Core Stasis Canceller Pulse Rifle Gauss Rifle Phasing Sabre Peak State ------------ > --- POWER ------------ Improved Deuterium Engine > --- PROPULSION ------- Heavy Treads Heavy Treads > --- UTILITY ---------- Huge Storage Unit Advanced Terrain Scanner Advanced Terrain Scan Processor Improved Light Armor Plating Layered Medium Armor Plating Reactive Plating Corruption Screen > --- WEAPON ----------- YOLO Cannon Railgun > --- INVENTORY -------- Fusion Compressor Neutrino Core Armored Treads Advanced Treads Medium Treads Advanced Heat Sink Matter Compressor Improved Terrain Scan Processor Advanced Terrain Scan Processor Target Analyzer Armor Integrity Analyzer Stasis Canceller Hardened Medium Armor Plating Improved Shield Generator Hacking Suite Corruption Screen High-powered Shock Rifle Pulse Rifle Flak Gun Heavy Machine Gun KE Penetrator Heavy Flak Cannon Heavy Missile Launcher Makeshift Spear [Rating: 90] Favorites ----------- Power Improved Deuterium Engine Engine Improved Deuterium Engine Power Core Light Nuclear Core Reactor Quantum Reactor Propulsion Medium Treads Treads Medium Treads Leg Carbon-fiber Leg Flight Unit Improved VTOL Module Utility Huge Storage Unit Device Improved Heat Sink Storage Huge Storage Unit Processor Advanced Terrain Scan Processor Hackware Hacking Suite Protection Improved Medium Armor Plating Weapon Flak Gun Energy Gun Particle Gun Energy Cannon YOLO Cannon Ballistic Gun Flak Gun Ballistic Cannon Heavy Flak Cannon Launcher Heavy Missile Launcher Impact Weapon Heavy Flail Piercing Weapon Makeshift Spear Build | -11 -10 -10 -10 -9 -8 -8 -7 -7 -7 -7 -7 -7 -6 -6 -6 -6 -6 -6 -6 -6 ------- Run | Yrd Mat Min Exi Min Mat Gar Fac Gar Fac Low Low Dat Pro Fac Was Fac Ext Cet Arc Hub Slots Evolved 8 | . . . . . 4 . 2 . . . . . . 2 . . . . . . Power . | . . . . . . . . . . . . . . . . . . . . . Propulsion 2 | . . . . . 1 . 1 . . . . . . . . . . . . . Utility 5 | . . . . . 3 . 1 . . . . . . 1 . . . . . . Weapon 1 | . . . . . . . . . . . . . . 1 . . . . . . Parts Attached 279 | 7 3 7 4 . 52 7 5 21 24 8 10 . 3 17 5 14 19 29 9 35 Power 27 | 1 . 2 . . 5 1 . 2 . 1 2 . . . . 2 2 5 1 3 Engine 7 | 1 . 1 . . 2 . . 1 . . 1 . . . . . . 1 . . Core 18 | . . 1 . . 3 1 . 1 . 1 1 . . . . 1 2 3 1 3 Reactor 2 | . . . . . . . . . . . . . . . . 1 . 1 . . Propulsion 69 | 2 . 2 . . 17 3 2 6 4 4 2 . 1 2 2 . 5 2 1 14 Treads 50 | 2 . . . . 8 3 2 6 4 4 2 . 1 2 2 . 5 2 1 6 Leg 18 | . . 2 . . 8 . . . . . . . . . . . . . . 8 Wheel . | . . . . . . . . . . . . . . . . . . . . . Hover . | . . . . . . . . . . . . . . . . . . . . . Flight 1 | . . . . . 1 . . . . . . . . . . . . . . . Utility 90 | 1 . 1 . . 11 1 3 8 11 3 2 . 2 12 1 6 11 6 6 5 Device 43 | . . 1 . . 4 . 2 5 4 . . . 1 5 . 5 8 2 3 3 Storage 8 | 1 . . . . 3 . . . 1 . . . . 2 . . . . 1 . Processor 7 | . . . . . . . . 1 1 1 . . . 1 . . 2 . 1 . Hackware 2 | . . . . . . . . . 1 . . . . . . . . 1 . . Protection 30 | . . . . . 4 1 1 2 4 2 2 . 1 4 1 1 1 3 1 2 Artifact . | . . . . . . . . . . . . . . . . . . . . . Weapon 93 | 3 3 2 4 . 19 2 . 5 9 . 4 . . 3 2 6 1 16 1 13 Energy Gun 31 | 2 3 1 2 . 13 . . . . . . . . 1 . . . 4 . 5 Energy Cannon 10 | . . . 1 . 1 . . . 1 . . . . . 1 . . 4 . 2 Ballistic Gun 39 | 1 . 1 1 . 4 1 . 4 6 . 3 . . . . 4 1 7 1 5 Ballistic Cannon 5 | . . . . . . 1 . . . . . . . 2 . 1 . 1 . . Launcher 3 | . . . . . . . . . . . 1 . . . 1 . . . . 1 Special Weapon . | . . . . . . . . . . . . . . . . . . . . . Impact Weapon 4 | . . . . . 1 . . 1 2 . . . . . . . . . . . Slashing Weapon . | . . . . . . . . . . . . . . . . . . . . . Piercing Weapon 1 | . . . . . . . . . . . . . . . . 1 . . . . Special Melee Weapon . | . . . . . . . . . . . . . . . . . . . . . Unidentified Prototypes 11 | . . . 1 . 5 . . . 2 . . . . . . . . 2 . 1 Parts Lost 99 | . . 3 . . 20 5 . 9 1 6 6 . 1 . 1 5 3 7 5 27 Power 12 | . . 1 . . 3 . . 2 . . 2 . . . . 2 . 1 1 . Propulsion 38 | . . 2 . . 5 2 . 2 1 2 2 . 1 . 1 . 2 2 1 15 Utility 29 | . . . . . 5 1 . 5 . 2 2 . . . . 3 . 2 3 6 Weapon 20 | . . . . . 7 2 . . . 2 . . . . . . 1 2 . 6 Highest Loss Streak 11 | . . 3 . . 5 2 . 5 1 2 6 . 1 . 1 3 2 2 5 11 To Critical Strikes 2 | . . . . . . . . 1 . . . . . . . . . 1 . . Average Slot Usage (%) 94 | . 85 88 99 100 90 98 98 92 99 99 99 100 100 99 83 84 91 98 98 94 Engine 3 | . 14 9 . . 6 . . 2 . . 5 7 7 6 6 4 . . . . Core 4 | . . 4 14 14 2 8 7 4 7 7 1 . . . . 1 6 3 5 5 Treads 21 | . 28 15 . . 11 26 30 29 30 29 30 30 30 25 17 13 18 26 25 14 Leg 3 | . . 10 28 28 13 . . . . . . . . . . . . . . 8 Device 10 | . . 5 14 14 16 18 20 17 10 5 . . 1 5 6 7 13 8 6 10 Storage 9 | . 14 14 14 14 17 18 8 7 7 7 7 7 7 6 6 6 6 6 6 6 Processor 9 | . . . . . . . . 6 7 13 15 15 15 13 13 13 19 20 25 20 Protection 11 | . . . . . 4 7 15 5 18 17 23 23 20 19 20 16 5 8 6 7 Energy Gun 4 | . 14 12 22 28 13 . . . . . . . . 1 . . . 2 6 10 Ballistic Gun 11 | . 14 15 3 . 4 17 7 12 14 14 14 15 15 13 . 12 12 13 13 8 Ballistic Cannon 1 | . . . . . . . 7 1 . . . . . 3 . 6 6 1 . . Naked Turns . | . . . . . . . . . . . . . . . . . . . . . Heaviest Build 138 | 11 11 13 29 17 102 105 111 111 115 117 125 123 124 133 138 132 126 133 131 119 Greatest Support 140 | 40 40 40 20 20 62 60 88 88 104 104 96 96 96 98 140 140 140 116 104 96 Greatest Overweight (x) 38 | . . 3 1 . 7 2 1 1 1 1 1 1 1 1 1 . 1 1 1 38 Average Overweight (x) . | . . . . . . 1 1 1 1 1 1 1 1 1 . . . . 1 1 Largest Inventory Capacity 25 | 8 8 8 8 8 25 25 25 25 25 25 25 25 25 25 25 25 25 25 25 25 Average Capacity 21 | 7 8 8 8 8 13 25 25 25 25 25 25 25 25 25 25 25 25 25 25 24 Most Carried 25 | 2 5 8 8 8 25 25 25 25 25 24 23 23 25 25 25 25 25 25 25 25 Average Carried 20 | 1 4 6 7 8 12 24 23 24 24 22 18 23 24 24 24 24 23 23 24 22 Final Capacity 25 | 8 8 8 8 8 25 25 25 25 25 25 25 25 25 25 25 25 25 25 25 5 Final Carried 25 | 2 5 8 8 8 25 24 25 25 24 23 23 23 25 25 24 24 25 25 25 5 Class Distribution -------------------- 50% | Scavenger-Mutant 12% | Scavenger-Skirmisher 10% | Mutant 9% | Derelict-Skirmisher 5% | Scavenger-Tank 5% | Skirmisher 3% | Tank Dominant Class ---------------- Mutant | -10/Materials Mutant | -10/Mines Scavenger-Mutant | -10/Exiles Scavenger-Mutant | -9/Mines Scavenger-Mutant | -8/Materials Scavenger-Mutant | -8/Garrison Scavenger-Mutant | -7/Factory Scavenger-Mutant | -7/Garrison Scavenger-Mutant | -7/Factory Scavenger-Mutant | -7/Lower Caves Mutant | -7/Lower Caves Mutant | -7/Data Miner Mutant | -6/Proximity Caves Derelict-Skirmisher | -6/Factory Scavenger-Skirmisher | -6/Waste Scavenger-Skirmisher | -6/Factory Skirmisher | -6/Extension Scavenger-Tank | -6/Cetus Scavenger-Skirmisher | -6/Archives Scavenger-Skirmisher | -6/Hub_04(d) Resources | -11 -10 -10 -10 -9 -8 -8 -7 -7 -7 -7 -7 -7 -6 -6 -6 -6 -6 -6 -6 -6 ----------- Run | Yrd Mat Min Exi Min Mat Gar Fac Gar Fac Low Low Dat Pro Fac Was Fac Ext Cet Arc Hub Matter Collected 7945 | 224 45 104 . 40 684 279 . 752 457 523 239 . 214 164 518 795 808 768 322 1009 Remotely . | . . . . . . . . . . . . . . . . . . . . . Salvage Created 10431 | . 45 136 . 47 1552 374 . 692 362 340 176 . 106 164 1623 671 1087 1177 322 1557 Parts 430 | . 6 13 . 7 68 21 . 36 17 13 17 . 8 11 6 18 50 40 11 88 Haulers Intercepted 2 | . . . . . 2 . . . . . . . . . . . . . . . Recyclers Shooed 6 | . . . . . 1 . . . 1 . . . . . . 2 1 . . 1 Parts Field Recycled . | . . . . . . . . . . . . . . . . . . . . . Retrieved Matter . | . . . . . . . . . . . . . . . . . . . . . Parts Self-Destructed 45 | . . . . . . . . . . 10 16 . 19 . . . . . . . Prevented . | . . . . . . . . . . . . . . . . . . . . . Kills | -11 -10 -10 -10 -9 -8 -8 -7 -7 -7 -7 -7 -7 -6 -6 -6 -6 -6 -6 -6 -6 ------- Run | Yrd Mat Min Exi Min Mat Gar Fac Gar Fac Low Low Dat Pro Fac Was Fac Ext Cet Arc Hub Combat Hostiles Destroyed 199 | . 3 5 . 5 29 9 . 24 9 9 10 . 4 4 6 17 15 23 4 23 Guns 146 | . 3 5 . 4 28 8 . 20 9 9 7 . 4 4 . 9 7 8 4 17 Cannons 27 | . . . . . 1 1 . 4 . . . . . . 1 8 8 4 . . AOE 18 | . . . . 1 . . . . . . 3 . . . 2 . . 6 . 6 Classes Destroyed 18 | . 1 2 . . 5 1 . . 3 1 . . . . 1 2 1 1 . . Worker 8 | . . . . . . . . . 1 . . . . . . . . . . 7 Builder 6 | . . . . . . . . . . . . . . . . 1 . . . 5 Hauler 2 | . . . . . 2 . . . . . . . . . . . . . . . Recycler 5 | . . . . . . . . . 1 . . . . . . . 3 . . 1 Watcher 8 | . . . . . 1 . . . 2 . . . . . . . 1 1 . 3 Swarmer 48 | . 3 3 . 5 . . . 10 3 . 10 . 3 . . 3 4 . . 4 Grunt 76 | . . 1 . . 16 2 . 9 4 3 . . 1 1 . 12 6 13 . 8 Brawler 3 | . . . . . . . . . . . . . . . . 1 1 1 . . Duelist 1 | . . . . . . . . . . . . . . . . . . 1 . . Sentry 30 | . . . . . 9 5 . 4 1 1 . . . 1 . . 3 . 4 2 Demolisher 1 | . . 1 . . . . . . . . . . . . . . . . . . Specialist 3 | . . . . . . 1 . . . . . . . . . . . . . 2 Hunter 13 | . . . . . 3 1 . 1 . 2 . . . 1 . . . 1 . 4 Programmer 5 | . . . . . . . . . 1 . . . . 1 . 1 . . . 2 Heavy 2 | . . . . . 1 . . . . . . . . . . . . . . 1 Behemoth 1 | . . . . . . . . . . . . . . . . . 1 . . . Compactor 6 | . . . . . . . . . . . . . . . 6 . . . . . Cetus Guard 7 | . . . . . . . . . . . . . . . . . . 7 . . Thug 3 | . . . . . . . . . . 2 . . . . . . 1 . . . Mutant 1 | . . . . . . . . . . 1 . . . . . . . . . . Best Kill Streak 15 | . 3 3 . 4 3 2 . 6 4 3 7 . 2 2 4 4 5 6 3 15 Combat Bots Only 7 | . 3 3 . 4 3 2 . 6 2 3 7 . 2 2 4 4 5 6 3 7 Max Kills in Single Turn 6 | . 2 1 . 2 1 1 . 1 2 1 3 . 1 1 1 2 2 6 1 5 Gunslinging 1 | . 1 . . . . . . . . . . . . . . . . . . . Exploded 5 | . . . . 1 . . . . . . 3 . . . 1 . . 5 . 2 Melee . | . . . . . . . . . . . . . . . . . . . . . Uniques/NPCs Destroyed . | . . . . . . . . . . . . . . . . . . . . . Combat | -11 -10 -10 -10 -9 -8 -8 -7 -7 -7 -7 -7 -7 -6 -6 -6 -6 -6 -6 -6 -6 -------- Run | Yrd Mat Min Exi Min Mat Gar Fac Gar Fac Low Low Dat Pro Fac Was Fac Ext Cet Arc Hub Hostile Shots Fired 1561 | . 12 33 . 18 258 46 . 229 70 106 83 . 51 34 . 129 117 133 31 211 Missed 434 | . 1 7 . 3 83 10 . 70 20 26 20 . 11 8 . 33 38 47 8 49 Damage Taken 17203 | . 86 472 . 114 3081 556 . 1634 729 1156 941 . 538 284 118 1600 676 1727 518 2973 Core 1611 | . 22 39 . 16 185 42 . 176 80 144 84 . 46 31 . 149 87 272 . 238 Absorbed by Shields 808 | . . . . . . . . 248 . . . . . . . 130 244 168 18 . Reduced by Siege Mode 49 | . . . . . . . . . . . . . . . . 24 25 . . . Redirected to Shielding 49 | . . . . . . . . . 49 . . . . . . . . . . . Ignored by Resistances 473 | . . . . . . . . . 94 52 95 . 109 71 . 52 . . . . Core Remaining (%) 62 | 100 . . . 69 . 58 . . . . . . 24 . . . . . . . Volleys Fired 575 | . 3 13 . 6 157 27 1 55 27 25 16 . 17 11 9 50 37 38 11 72 Largest 3 | . 2 2 . 2 2 2 2 2 2 2 2 . 2 3 2 3 3 3 3 3 Hottest 308 | . 60 60 . 130 130 76 76 76 56 56 67 . 61 114 139 118 116 143 308 308 Shots Fired 1258 | . 6 26 . 12 269 54 2 110 55 49 31 . 35 33 15 142 109 85 30 195 Gun 1104 | . 6 26 . 12 268 53 1 89 55 49 29 . 35 22 . 94 73 71 30 191 Cannon 143 | . . . . . 1 1 1 21 . . . . . 11 9 48 36 14 . 1 Launcher 11 | . . . . . . . . . . . 2 . . . 6 . . . . 3 Special . | . . . . . . . . . . . . . . . . . . . . . Kinetic 896 | . 3 15 . . 65 54 2 110 55 49 29 . 35 33 . 142 109 53 22 120 Thermal 336 | . 3 11 . 12 204 . . . . . . . . . 9 . . 24 8 65 Explosive 11 | . . . . . . . . . . . 2 . . . 6 . . . . 3 Electromagnetic 15 | . . . . . . . . . . . . . . . . . . 8 . 7 Robot Hit Streak 21 | . 6 5 . 2 19 12 5 21 12 8 6 . 11 8 4 19 13 11 7 11 Robot Miss Streak 15 | . . 4 . 3 3 4 4 14 15 8 7 . 4 5 2 8 7 3 2 5 Penetration Max 1 | . . . . . . . . . . . 1 . . . . 1 1 . . 1 Secondary Targets 23 | . 1 2 . . 4 . . 3 1 2 3 . 1 . . . . 4 . 2 Max Gunslinging Chain 1 | . 1 1 . . 1 . . 1 1 1 1 . 1 . . . . 1 . 1 Shots Hit Robots 924 | . 6 16 . 5 198 47 2 94 51 48 22 . 30 25 9 104 78 54 23 112 Core Hits 767 | . 4 9 . 6 70 40 . 128 65 66 22 . 24 27 7 73 86 51 17 72 Critical Kills 8 | . . . . . . . . . . . . . . . 3 . . 5 . . Critical Parts Destroyed 1 | . . . . . . . . . . . . . 1 . . . . . . . Critical Strikes 15 | . . . . . 5 . . . . . . . 1 . 3 . . 6 . . Burn 5 | . . . . . 5 . . . . . . . . . . . . . . . Meltdown 8 | . . . . . . . . . . . . . . . 3 . . 5 . . Destroy 1 | . . . . . . . . . . . . . 1 . . . . . . . Corrupt 1 | . . . . . . . . . . . . . . . . . . 1 . . Melee Attacks 8 | . . . . . . . . 2 4 . . . . . . 2 . . . . Impact 6 | . . . . . . . . 2 4 . . . . . . . . . . . Slashing . | . . . . . . . . . . . . . . . . . . . . . Piercing 2 | . . . . . . . . . . . . . . . . 2 . . . . Sneak Attacks . | . . . . . . . . . . . . . . . . . . . . . Combat Hostiles . | . . . . . . . . . . . . . . . . . . . . . Follow-up Attacks . | . . . . . . . . . . . . . . . . . . . . . Damage Inflicted 26176 | . 59 173 . 116 3620 835 37 1910 1189 888 619 . 504 426 1697 2634 2597 3967 737 4168 Guns 16598 | . 59 173 . 81 3369 807 11 1531 919 888 432 . 504 290 . 1409 1544 1100 737 2744 Cannons 4959 | . . . . . 105 28 26 379 . . . . . 136 874 1225 1047 1139 . . Explosions 4613 | . . . . 35 146 . . . 270 . 187 . . . 823 . . 1728 . 1424 Melee . | . . . . . . . . . . . . . . . . . . . . . Ramming 6 | . . . . . . . . . . . . . . . . . 6 . . . Kinetic 14917 | . 25 74 . . 819 835 37 1910 919 888 432 . 504 426 . 2634 2591 742 438 1643 Thermal 8935 | . 34 99 . 116 2801 . . . 270 . . . . . 1161 . . 3054 299 1101 Explosive 1323 | . . . . . . . . . . . 187 . . . 536 . . . . 600 Electromagnetic 995 | . . . . . . . . . . . . . . . . . . 171 . 824 Impact . | . . . . . . . . . . . . . . . . . . . . . Slashing . | . . . . . . . . . . . . . . . . . . . . . Piercing . | . . . . . . . . . . . . . . . . . . . . . Highest Corruption 4 | . . . . . . . . . 4 4 4 4 4 . . . . . . 3 Average Corruption 3 | . . . . . . . . . 3 4 4 4 4 . . . . . . 1 Corruption Purged . | . . . . . . . . . . . . . . . . . . . . . Corruption Blocked 5 | . . . . . . . . . . 2 . . . . . 1 1 1 . . Effects 86 | . . . . . . . . . 20 19 22 6 14 . . . . . . 5 Message Errors 19 | . . . . . . . . . 7 3 6 1 2 . . . . . . . Matter Fused 22 | . . . . . . . . . 4 4 7 2 4 . . . . . . 1 Heat Flow Errors 13 | . . . . . . . . . 4 2 3 . 3 . . . . . . 1 Energy Discharges 10 | . . . . . . . . . . 3 3 2 1 . . . . . . 1 Parts Rejected 2 | . . . . . . . . . . 1 . . . . . . . . . 1 Data Loss (minor) 10 | . . . . . . . . . 2 4 1 1 1 . . . . . . 1 Data Loss (major) 3 | . . . . . . . . . 2 . . . 1 . . . . . . . Misfires 4 | . . . . . . . . . 1 . 2 . 1 . . . . . . . Alerts 2 | . . . . . . . . . . 1 . . 1 . . . . . . . Weapon Failures 1 | . . . . . . . . . . 1 . . . . . . . . . . Overload Shots 13 | . . . . . . . . . . . . . . . . . . . 6 7 Overflow Damage 412 | . . . . . . . . 2 22 . . . . . 154 1 2 120 . 111 Projectiles 204 | . . . . . . . . 2 . . . . . . 123 1 2 76 . . Explosions 208 | . . . . . . . . . 22 . . . . . 31 . . 44 . 111 Melee . | . . . . . . . . . . . . . . . . . . . . . Knockbacks 83 | . . . . . . . 1 5 . . . . . 5 . 54 18 . . . Impact . | . . . . . . . . . . . . . . . . . . . . . Kinetic 78 | . . . . . . . 1 4 . . . . . 5 . 50 18 . . . Secondary 5 | . . . . . . . . 1 . . . . . . . 4 . . . . Self-Inflicted Damage 463 | . . . . . . . . . 82 . 59 . . . 120 . . . . 202 Shots 8 | . . . . . . . . . 1 . 1 . . . 3 . . . . 3 Rammed 1 | . . . . . . . . . . . . . . . . . 1 . . . Targets Rammed 1 | . . . . . . . . . . . . . . . . . 1 . . . Kicked . | . . . . . . . . . . . . . . . . . . . . . Crushed . | . . . . . . . . . . . . . . . . . . . . . Highest Temperature 537 | . 20 47 . 165 125 . . 23 230 269 263 . 281 342 135 441 334 166 411 537 Average Temperature 74 | . 15 24 . 73 25 . . 6 56 55 72 . 86 144 51 93 79 56 159 72 Received Heat Transfer 3661 | . . 99 . . 939 243 . 367 144 288 . . 72 27 . 560 173 359 111 279 Effects 13 | . . . . . . . . . 1 . 3 . . . . 2 . . 2 5 Shutdowns 2 | . . . . . . . . . . . . . . . . . . . 1 1 Energy Bleed 1 | . . . . . . . . . . . . . . . . . . . 1 . Interference 6 | . . . . . . . . . 1 . 3 . . . . 2 . . . . Damage (minor) 1 | . . . . . . . . . . . . . . . . . . . . 1 Damage (major) 3 | . . . . . . . . . . . . . . . . . . . . 3 Siege Activations 4 | . . . . . . . . . . . . . . . . 2 2 . . . Total Turns 82 | . . . . . . . . . . . . . . . . 50 32 . . . Longest Duration 28 | . . . . . . . . . . . . . . . . 28 23 . . . Robots Corrupted . | . . . . . . . . . . . . . . . . . . . . . Combat Hostiles . | . . . . . . . . . . . . . . . . . . . . . Parts Fried 1 | . . . . . . . . . . . . . . . . . . 1 . . Impact Corruptions 1 | . . . . . . . . 1 . . . . . . . . . . . . Robots Melted 8 | . . . . . . . . . . . . . . . 3 . . 5 . . Combat Hostiles 8 | . . . . . . . . . . . . . . . 3 . . 5 . . Parts Melted 25 | . . . . . 16 . . . 1 . . . . . 5 . . 1 . 2 Heat Transferred 12741 | . 75 225 . 285 6049 . . . 200 . . . . . 960 . . 3139 287 1521 Parts Sabotaged . | . . . . . . . . . . . . . . . . . . . . . Parts Stolen . | . . . . . . . . . . . . . . . . . . . . . Parts Stripped . | . . . . . . . . . . . . . . . . . . . . . Power Chain Reactions 2 | . . . . . . . . . 1 . . . . . . . . . . 1 Alert | -11 -10 -10 -10 -9 -8 -8 -7 -7 -7 -7 -7 -7 -6 -6 -6 -6 -6 -6 -6 -6 ------- Run | Yrd Mat Min Exi Min Mat Gar Fac Gar Fac Low Low Dat Pro Fac Was Fac Ext Cet Arc Hub Peak Influence 734 | . 78 135 . 193 373 444 248 734 425 . . . . 188 81 367 504 404 239 545 Initial 385 | . . 30 . . 74 225 233 173 385 . . . . 164 21 56 179 208 116 13 Average 231 | . 59 72 . 117 227 369 238 507 244 . . . . 66 55 130 294 248 189 124 Maximum Alert Level 3 | . . . . . 1 2 1 3 2 . . . . . . 1 2 2 1 2 Low Security (%) 43 | 100 100 100 . 100 27 . . 3 38 . . . . 100 100 76 22 29 32 68 Level 1 45 | . . . . . 72 91 100 28 56 . . . . . . 23 54 55 67 30 Level 2 8 | . . . . . . 8 . 43 4 . . . . . . . 23 14 . 1 Level 3 2 | . . . . . . . . 23 . . . . . . . . . . . . Level 4 . | . . . . . . . . . . . . . . . . . . . . . Level 5 . | . . . . . . . . . . . . . . . . . . . . . High Security . | . . . . . . . . . . . . . . . . . . . . . Max Security . | . . . . . . . . . . . . . . . . . . . . . Squads Dispatched 36 | . 1 . . . 9 . . . 6 . . . . 2 . 2 2 2 . 12 Investigation 11 | . . . . . 4 . . . 3 . . . . 1 . 1 . 2 . . Extermination 3 | . . . . . . . . . 1 . . . . 1 . . . . . 1 Reinforcement 15 | . 1 . . . 3 . . . 2 . . . . . . 1 2 . . 6 Assault . | . . . . . . . . . . . . . . . . . . . . . Garrison 7 | . . . . . 2 . . . . . . . . . . . . . . 5 Intercept . | . . . . . . . . . . . . . . . . . . . . . Searches Triggered . | . . . . . . . . . . . . . . . . . . . . . Construction Impeded 3 | . . . . . . . . . 1 . . . . . . 1 . . . 1 Haulers Reinforced . | . . . . . . . . . . . . . . . . . . . . . Active Scanning Responses . | . . . . . . . . . . . . . . . . . . . . . Cargo Convoy Interrupts . | . . . . . . . . . . . . . . . . . . . . . Stealth | -11 -10 -10 -10 -9 -8 -8 -7 -7 -7 -7 -7 -7 -6 -6 -6 -6 -6 -6 -6 -6 --------- Run | Yrd Mat Min Exi Min Mat Gar Fac Gar Fac Low Low Dat Pro Fac Was Fac Ext Cet Arc Hub Distress Signals 25 | . 2 . . . 8 . . . 2 . . . . . . 1 3 2 1 6 Communications Jammed . | . . . . . . . . . . . . . . . . . . . . . Distress Signals . | . . . . . . . . . . . . . . . . . . . . . Times Spotted 302 | . 6 6 . 7 56 9 2 26 17 13 12 . 9 6 6 23 33 27 9 35 Peak Tracking Total 12 | . 4 3 . 4 5 2 1 4 4 3 5 . 5 1 2 4 6 6 2 12 Tactical Retreats 15 | . . . . . 4 . . . 1 . 1 . 2 . . 4 1 . . 2 Traps | -11 -10 -10 -10 -9 -8 -8 -7 -7 -7 -7 -7 -7 -6 -6 -6 -6 -6 -6 -6 -6 ------- Run | Yrd Mat Min Exi Min Mat Gar Fac Gar Fac Low Low Dat Pro Fac Was Fac Ext Cet Arc Hub Traps Triggered 22 | . . . . . 1 4 . 10 2 . . . . 2 . 1 2 . . . Indirectly . | . . . . . . . . . . . . . . . . . . . . . Trap Hack Attempts . | . . . . . . . . . . . . . . . . . . . . . Triggered . | . . . . . . . . . . . . . . . . . . . . . Disarmed . | . . . . . . . . . . . . . . . . . . . . . Reprogrammed . | . . . . . . . . . . . . . . . . . . . . . Reused . | . . . . . . . . . . . . . . . . . . . . . Traps Extracted . | . . . . . . . . . . . . . . . . . . . . . Installed . | . . . . . . . . . . . . . . . . . . . . . Triggered 1 | . . . . . . . . . . 1 . . . . . . . . . . Machines | -11 -10 -10 -10 -9 -8 -8 -7 -7 -7 -7 -7 -7 -6 -6 -6 -6 -6 -6 -6 -6 ---------- Run | Yrd Mat Min Exi Min Mat Gar Fac Gar Fac Low Low Dat Pro Fac Was Fac Ext Cet Arc Hub Machines Disabled 38 | . . . . 1 . . . . 17 . . . . . . 2 2 2 3 11 Max in Single Turn 10 | . . . . 1 . . . . 10 . . . . . . 1 1 2 1 7 Garrison Access 1 | . . . . . . . . . . . . . . 1 . . . . . . Network Hub 1 | . . . . . . . . . . . . . . . . . . . . 1 Machines Repaired . | . . . . . . . . . . . . . . . . . . . . . Machines Dismantled . | . . . . . . . . . . . . . . . . . . . . . Machines Sabotaged . | . . . . . . . . . . . . . . . . . . . . . Overloaded Fab Kills . | . . . . . . . . . . . . . . . . . . . . . Hacking | -11 -10 -10 -10 -9 -8 -8 -7 -7 -7 -7 -7 -7 -6 -6 -6 -6 -6 -6 -6 -6 --------- Run | Yrd Mat Min Exi Min Mat Gar Fac Gar Fac Low Low Dat Pro Fac Was Fac Ext Cet Arc Hub Machines Accessed 42 | . 2 . . . 10 1 1 2 5 . 1 4 1 6 . 2 . 3 1 3 Terminals 27 | . 2 . . . 7 1 . 2 3 . . . 1 4 . 1 . 3 . 3 Fabricators 1 | . . . . . . . . . 1 . . . . . . . . . . . Repair Stations . | . . . . . . . . . . . . . . . . . . . . . Recycling Units 4 | . . . . . 2 . . . 1 . . . . . . 1 . . . . Scanalyzers . | . . . . . . . . . . . . . . . . . . . . . Garrison Access 4 | . . . . . 1 . 1 . . . . . . 2 . . . . . . Total Hacks 127 | . 3 . . . 21 4 1 3 14 . 1 27 2 14 . 2 . 15 16 4 Successful 82 | . 1 . . . 11 1 1 1 6 . 1 27 2 8 . 2 . 4 16 1 Failed 45 | . 2 . . . 10 3 . 2 8 . . . . 6 . . . 11 . 3 Catastrophic 12 | . 2 . . . 2 1 . 1 3 . . . . . . . . 2 . 1 Database Lockouts . | . . . . . . . . . . . . . . . . . . . . . Manual 51 | . 3 . 1 . 17 . . . 12 . . . . 12 . 2 1 . 2 1 Terminals 69 | . 3 . . . 16 4 . 3 10 . . . 2 11 . 1 . 15 . 4 Fabricators 1 | . . . . . . . . . 1 . . . . . . . . . . . Repair Stations . | . . . . . . . . . . . . . . . . . . . . . Recycling Units 8 | . . . . . 4 . . . 3 . . . . . . 1 . . . . Scanalyzers . | . . . . . . . . . . . . . . . . . . . . . Garrison Access 5 | . . . . . 1 . 1 . . . . . . 3 . . . . . . Terminal Hacks 59 | . 1 . . . 3 1 . 1 1 . 1 27 2 1 . . . 4 16 1 Record 32 | . . . . . . . . . . . . 11 2 . . . . 3 16 . Part Schematic 9 | . . . . . . . . . . . . 9 . . . . . . . . Robot Schematic 4 | . . . . . . . . . . . . 4 . . . . . . . . Prototype ID Bank 3 | . . . . . . . . . . . . 3 . . . . . . . . Open Door 2 | . . . . . . . . . . . 1 . . . . . . 1 . . Level Access Points 1 | . . . . . . . . . . . . . . 1 . . . . . . Branch Access Points 3 | . 1 . . . 1 . . . . . . . . . . . . . . 1 Emergency Access Points 3 | . . . . . 1 1 . 1 . . . . . . . . . . . . Alert Level 1 | . . . . . 1 . . . . . . . . . . . . . . . Unreport Threat 1 | . . . . . . . . . 1 . . . . . . . . . . . Fabricator Hacks 1 | . . . . . . . . . 1 . . . . . . . . . . . Build 1 | . . . . . . . . . 1 . . . . . . . . . . . Repair Station Hacks . | . . . . . . . . . . . . . . . . . . . . . Recycling Unit Hacks 1 | . . . . . . . . . 1 . . . . . . . . . . . Retrieve Components 1 | . . . . . . . . . 1 . . . . . . . . . . . Scanalyzer . | . . . . . . . . . . . . . . . . . . . . . Garrison Access Hacks 4 | . . . . . 1 . 1 . . . . . . 2 . . . . . . Unlock Access 2 | . . . . . 1 . 1 . . . . . . . . . . . . . Seal Access 1 | . . . . . . . . . . . . . . 1 . . . . . . Coupler Status 1 | . . . . . . . . . . . . . . 1 . . . . . . Unauthorized Hacks 16 | . . . . . 7 . . . 2 . . . . 5 . 2 . . . . Terminals 12 | . . . . . 5 . . . 2 . . . . 4 . 1 . . . . Botnet 12 | . . . . . 5 . . . 2 . . . . 4 . 1 . . . . Fabricators . | . . . . . . . . . . . . . . . . . . . . . Repair Stations . | . . . . . . . . . . . . . . . . . . . . . Recycling Units 3 | . . . . . 2 . . . . . . . . . . 1 . . . . Monitor 1 | . . . . . . . . . . . . . . . . 1 . . . . Tunnel 2 | . . . . . 2 . . . . . . . . . . . . . . . Scanalyzers . | . . . . . . . . . . . . . . . . . . . . . Garrison Access 1 | . . . . . . . . . . . . . . 1 . . . . . . Reprogram 1 | . . . . . . . . . . . . . . 1 . . . . . . Data Cores Recovered . | . . . . . . . . . . . . . . . . . . . . . Used . | . . . . . . . . . . . . . . . . . . . . . Hacking Detections 29 | . 1 . . . 8 1 . 2 4 . . . 1 5 . 1 . 3 . 3 Full Trace Events 8 | . . . . . 2 1 . . 2 . . . . 1 . . . 2 . . Feedback Events 2 | . . . . . . . . . 1 . . . . . . . . 1 . . Corruption 2 | . . . . . . . . . 1 . . . . . . . . 1 . . Feedback Blocked . | . . . . . . . . . . . . . . . . . . . . . Robot Schematics Acquired 4 | . . . . . . . . . . . . 4 . . . . . . . . Robots Built 3 | . . . . . . . . . 3 . . . . . . . . . . . Authchips 1 | . . . . . . . . . 1 . . . . . . . . . . . Time 58 | . . . . . . . . . 58 . . . . . . . . . . . Total Robot Build Rating 9 | . . . . . . . . . 9 . . . . . . . . . . . Part Schematics Acquired 9 | . . . . . . . . . . . . 9 . . . . . . . . Parts Built . | . . . . . . . . . . . . . . . . . . . . . Authchips . | . . . . . . . . . . . . . . . . . . . . . Time . | . . . . . . . . . . . . . . . . . . . . . Total Part Build Rating . | . . . . . . . . . . . . . . . . . . . . . Parts Repaired . | . . . . . . . . . . . . . . . . . . . . . Time . | . . . . . . . . . . . . . . . . . . . . . Parts Recycled . | . . . . . . . . . . . . . . . . . . . . . Recycled Matter . | . . . . . . . . . . . . . . . . . . . . . Retrieved Matter . | . . . . . . . . . . . . . . . . . . . . . Retrieved Components 10 | . . . . . . . . . 10 . . . . . . . . . . . Parts Scanalyzed . | . . . . . . . . . . . . . . . . . . . . . Part Schematics Acquired . | . . . . . . . . . . . . . . . . . . . . . Parts Damaged . | . . . . . . . . . . . . . . . . . . . . . Bothacking | -11 -10 -10 -10 -9 -8 -8 -7 -7 -7 -7 -7 -7 -6 -6 -6 -6 -6 -6 -6 -6 ------------ Run | Yrd Mat Min Exi Min Mat Gar Fac Gar Fac Low Low Dat Pro Fac Was Fac Ext Cet Arc Hub Used RIF Installer 4 | . . . . . . 2 . 2 . . . . . . . . . . . . Zone Cloak 2 | . . . . . . 1 . 1 . . . . . . . . . . . . Alert ID Control 1 | . . . . . . . . 1 . . . . . . . . . . . . Robots Hacked . | . . . . . . . . . . . . . . . . . . . . . Non-combat . | . . . . . . . . . . . . . . . . . . . . . Combat . | . . . . . . . . . . . . . . . . . . . . . Robot Hacks Applied . | . . . . . . . . . . . . . . . . . . . . . Relay Couplers Released . | . . . . . . . . . . . . . . . . . . . . . Fabnet Peak Effective % . | . . . . . . . . . . . . . . . . . . . . . Robots Rewired . | . . . . . . . . . . . . . . . . . . . . . Allies Hacked 1 | . . . . . . . . . 1 . . . . . . . . . . . Hacks Repelled . | . . . . . . . . . . . . . . . . . . . . . Allies | -11 -10 -10 -10 -9 -8 -8 -7 -7 -7 -7 -7 -7 -6 -6 -6 -6 -6 -6 -6 -6 -------- Run | Yrd Mat Min Exi Min Mat Gar Fac Gar Fac Low Low Dat Pro Fac Was Fac Ext Cet Arc Hub Total Allies 16 | . . 1 . 3 . . . . 3 . . . 1 . . . 8 . . . Largest Group 5 | . . 1 1 3 3 . . . 3 . . . 1 . . . 5 3 . . Highest-Rated Group 215 | . . 31 31 40 40 . . . 48 . . . 96 . . . 215 90 . . Highest-Rated Ally 159 | . . 31 31 16 16 . . . 16 . . . 96 . . . 159 39 . . Total Orders 1 | . . . . . 1 . . . . . . . . . . . . . . . AID 1 | . . . . . 1 . . . . . . . . . . . . . . . Ally Attacks 159 | . . . . 5 34 . . . 16 . . . 19 . . . 69 16 . . Total Damage 2788 | . . . . 45 340 . . . 178 . . . 610 . . . 1365 250 . . Kills 28 | . . . . 2 5 . . . 2 . . . 7 . . . 11 1 . . Allies Corrupted . | . . . . . . . . . . . . . . . . . . . . . Allies Melted . | . . . . . . . . . . . . . . . . . . . . . Intel | -11 -10 -10 -10 -9 -8 -8 -7 -7 -7 -7 -7 -7 -6 -6 -6 -6 -6 -6 -6 -6 ------- Run | Yrd Mat Min Exi Min Mat Gar Fac Gar Fac Low Low Dat Pro Fac Was Fac Ext Cet Arc Hub Robot Analysis Total . | . . . . . . . . . . . . . . . . . . . . . Derelict Logs Recovered 5 | . . . . 1 . . . . . 1 2 . 1 . . . . . . . Drone Launches . | . . . . . . . . . . . . . . . . . . . . . Drone Recoveries . | . . . . . . . . . . . . . . . . . . . . . Exploration | -11 -10 -10 -10 -9 -8 -8 -7 -7 -7 -7 -7 -7 -6 -6 -6 -6 -6 -6 -6 -6 ------------- Run | Yrd Mat Min Exi Min Mat Gar Fac Gar Fac Low Low Dat Pro Fac Was Fac Ext Cet Arc Hub Turns Passed 19536 | 79 138 535 470 107 3212 1179 186 1760 1777 858 951 182 669 1790 307 1180 1244 1205 459 1248 Spaces Moved 7878 | 44 77 310 382 73 1528 427 71 605 617 301 363 76 252 636 132 469 523 442 168 382 Core 18 | 2 . 12 . . 2 . . . . . . . . . . . . . . 2 Treads 6093 | 42 77 131 . . 538 427 71 605 617 301 363 76 252 636 132 469 523 442 168 223 Legs 1767 | . . 167 382 73 988 . . . . . . . . . . . . . . 157 Wheels . | . . . . . . . . . . . . . . . . . . . . . Hover . | . . . . . . . . . . . . . . . . . . . . . Flight . | . . . . . . . . . . . . . . . . . . . . . Fastest Speed 50 | 50 160 120 120 120 120 243 242 242 240 240 240 242 238 238 160 160 160 160 240 190 Average Speed 202 | 155 160 140 121 120 158 243 242 242 240 240 241 242 240 238 187 160 189 225 240 236 Slowest Speed 1950 | 160 160 200 190 120 400 325 242 243 242 240 242 242 242 238 238 160 240 240 240 1950 Overloaded Moves . | . . . . . . . . . . . . . . . . . . . . . Propulsion Burnouts . | . . . . . . . . . . . . . . . . . . . . . Robots Hopped . | . . . . . . . . . . . . . . . . . . . . . Cave-ins Triggered . | . . . . . . . . . . . . . . . . . . . . . Exploration Rate (%) 49 | 3 26 62 66 28 86 43 3 74 16 48 55 68 50 16 95 9 75 90 93 41 Regions Visited 20 Branch Regions 11 Pre-discovered Areas 5 | . . . . 1 2 . . . . . 1 1 . . . . . . . . Known Exits Taken 4 | . 1 . . . 1 . 1 . 1 . . . . . . . . . . . Unknown Exits Taken 12 | 1 . 1 1 1 . . . . . 1 1 1 1 . . 1 1 1 1 . Scrap Searched 7 | . . . . . . . . . . 2 1 . 4 . . . . . . . Spaces Dug 6 | . . . . . . . . 2 3 . . . . . . 1 . . . . Terrain Destroyed 663 | . . . . 7 7 . . 4 80 . 22 . 1 2 142 15 5 142 3 233 Melee 6 | . . . . . . . . 2 3 . . . . . . 1 . . . . Projectile 50 | . . . . . . . . 2 . . . . 1 2 1 14 5 10 3 12 AOE 607 | . . . . 7 7 . . . 77 . 22 . . . 141 . . 132 . 221 Terrain Rammed . | . . . . . . . . . . . . . . . . . . . . . Walls Destroyed . | . . . . . . . . . . . . . . . . . . . . . Machines Disabled . | . . . . . . . . . . . . . . . . . . . . . Actions | -11 -10 -10 -10 -9 -8 -8 -7 -7 -7 -7 -7 -7 -6 -6 -6 -6 -6 -6 -6 -6 --------- Run | Yrd Mat Min Exi Min Mat Gar Fac Gar Fac Low Low Dat Pro Fac Was Fac Ext Cet Arc Hub Total 10297 | 52 85 385 389 80 2039 512 84 788 853 388 407 75 284 890 160 793 695 559 202 577 Wait 1221 | . . 51 . 2 225 39 3 65 147 47 11 . 2 202 4 247 86 25 2 63 Move 7860 | 43 76 309 381 72 1528 426 70 604 616 300 362 75 251 636 131 468 522 441 167 382 Hop . | . . . . . . . . . . . . . . . . . . . . . Pick Up 158 | 1 3 4 1 . 39 4 2 10 12 5 8 . 7 10 2 7 13 11 8 11 Fast Attach 111 | 7 . 4 1 . 36 3 2 9 11 1 . . . 9 2 2 6 5 1 12 Attach 99 | . . 1 2 . 12 4 2 6 4 5 8 . 1 4 1 6 7 17 6 13 Detach 19 | 1 . . . . 3 . 1 . . . . . . . 3 . 1 6 1 3 Swap 71 | . 3 2 1 . 6 . 1 6 9 2 2 . 2 4 2 6 6 7 2 10 Drop 144 | . . 1 3 . 33 3 2 11 23 3 . . 4 14 6 5 12 9 4 11 Fire 575 | . 3 13 . 6 157 27 1 55 27 25 16 . 17 11 9 50 37 38 11 72 Melee 8 | . . . . . . . . 2 4 . . . . . . 2 . . . . Ram . | . . . . . . . . . . . . . . . . . . . . . Kick . | . . . . . . . . . . . . . . . . . . . . . Crush 1 | . . . . . . . . . . . . . . . . . 1 . . . Escape Stasis 30 | . . . . . . 6 . 20 . . . . . . . . 4 . . . Rewire . | . . . . . . . . . . . . . . . . . . . . . Trap . | . . . . . . . . . . . . . . . . . . . . . Miscellaneous . | . . . . . . . . . . . . . . . . . . . . . Route ------- -11/Scrapyard -10/Materials -10/Mines (discovered 3 exits: [*Mat x2] / *Exi) -10/Exiles -9/Mines -8/Materials (discovered 2 exits: *Fac / Gar) -8/Garrison -7/Factory -7/Garrison (discovered 3 exits: *Fac x3) -7/Factory -7/Lower Caves -7/Lower Caves -7/Data Miner -6/Proximity Caves -6/Factory (discovered 4 exits: *Fac x4) -6/Waste -6/Factory -6/Extension (discovered 3 exits: *Fac x2 / *Cet) -6/Cetus (discovered 3 exits: *Fac x2 / *Arc) -6/Archives (discovered 3 exits: *Fac / *Hub x2) -6/Hub_04(d) (discovered 1 exit: Fac) History --------- Turn | Location | Event 41 | -11/Scrapyard | Discovered new exit (range 16) 80 | -11/Scrapyard | Entered Materials 188 | -10/Materials | Discovered new exit (range 14) 192 | -10/Materials | Identified exit to Mines 218 | -10/Materials | Entered Mines 219 | -10/Mines | Assembled infested the area 311 | -10/Mines | Build established: Mutant 547 | -10/Mines | Lost 3 parts (1p2n) 579 | -10/Mines | Discovered new exit (range 11) 654 | -10/Mines | Received a Mining Laser from a helpful Derelict 733 | -10/Mines | Discovered new exit (range 6) 749 | -10/Mines | Deemed a non-threat by the Exiles lab entrance 749 | -10/Mines | Discovered new exit (range 5) 753 | -10/Mines | Entered Exiles 753 | -10/Exiles | Accompanied by 1 ally 783 | -10/Exiles | Met 8R-AWN 804 | -10/Exiles | Met EX-HEX 839 | -10/Exiles | Met EX-BIN 852 | -10/Exiles | Aligned with FarCom system 853 | -10/Exiles | Given EX-Vault access code 875 | -10/Exiles | Build established: Scavenger-Mutant 881 | -10/Exiles | Opened EX-Vault 888 | -10/Exiles | Found Prototype Energy Cannon 888 | -10/Exiles | Identified YOLO Cannon 923 | -10/Exiles | Warned to stay clear of 0b10 Research branches 958 | -10/Exiles | Met EX-DEC 1181 | -10/Exiles | Discovered new exit (range 14) 1223 | -10/Exiles | Left Exiles lab with YOLO Cannon 1223 | -10/Exiles | Entered Mines 1300 | -9/Mines | Assisted by bots powering up and referring to "LRC-V3" 1306 | -9/Mines | Learned location of Storage (-7) 1322 | -9/Mines | Discovered new exit (range 8) 1330 | -9/Mines | Entered Materials 1330 | -8/Materials | Accompanied by 3 allies 1330 | -8/Materials | Evolved 4 slots: Propulsion x1, Utility x3 2998 | -8/Materials | Lost 5 parts (1p3n1u) 3852 | -8/Materials | Discovered new exit (range 14) 4263 | -8/Materials | Garrison activated, responded to threat 4405 | -8/Materials | Lost 3 parts (1n1u1w) 4438 | -8/Materials | Garrison activated, responded to threat 4542 | -8/Materials | Identified exit to Garrison 4542 | -8/Materials | Entered Garrison 4764 | -8/Garrison | Triggered checkpoint 4953 | -8/Garrison | Installed Relay Interface Framework 5176 | -8/Garrison | Triggered checkpoint 5260 | -8/Garrison | Triggered checkpoint 5509 | -8/Garrison | Expanded RIF knowledge: Zone Cloak 5614 | -8/Garrison | Discovered new exit (range 15) 5721 | -8/Garrison | Entered Factory 5721 | -7/Factory | Evolved 2 slots: Propulsion x1, Utility x1 5897 | -7/Factory | Identified exit to Garrison 5907 | -7/Factory | Entered Garrison 6029 | -7/Garrison | Triggered checkpoint 6299 | -7/Garrison | Triggered checkpoint 6319 | -7/Garrison | Triggered checkpoint 6347 | -7/Garrison | Triggered checkpoint 6362 | -7/Garrison | Lost 5 parts (2n3u) 6593 | -7/Garrison | Discovered new exit (range 9) 6721 | -7/Garrison | Triggered checkpoint 6935 | -7/Garrison | Expanded RIF knowledge: Alert ID Control 7086 | -7/Garrison | Discovered new exit (range 13) 7233 | -7/Garrison | Triggered checkpoint 7563 | -7/Garrison | Discovered new exit (range 15) 7612 | -7/Garrison | Expanded RIF knowledge: Zone Cloak 7667 | -7/Garrison | Entered Factory 8199 | -7/Factory | Fabricated G-47 Trooper (x3) 9385 | -7/Factory | Discovered new exit (range 7) 9401 | -7/Factory | Identified exit to Lower Caves 9444 | -7/Factory | Entered Lower Caves 9540 | -7/Lower Caves | Encountered a Warlord checkpoint 9577 | -7/Lower Caves | Learned Factory terminal intel 9997 | -7/Lower Caves | Attracted the attention of an 0b10 checkpoint 10036 | -7/Lower Caves | Core integrity fell below 50% 10167 | -7/Lower Caves | Attacked by a faux Warlord 10283 | -7/Lower Caves | Discovered new exit (range 6) 10302 | -7/Lower Caves | Entered another Lower Caves area 10307 | -7/Lower Caves | Learned Factory stockpile data 10503 | -7/Lower Caves | Destroyed 7 combat bots 10506 | -7/Lower Caves | Lost 6 parts (2p2n2u) 10675 | -7/Lower Caves | Learned location of Zion (-6) 10743 | -7/Lower Caves | Build established: Mutant 11188 | -7/Lower Caves | Discovered new exit (range 3) 11253 | -7/Lower Caves | Entered Data Miner 11253 | -7/Data Miner | Discovered new exit (range 6) 11299 | -7/Data Miner | Met Data Miner 11345 | -7/Data Miner | Learned location of Section 7 (-2) 11345 | -7/Data Miner | Acquired the access code to Warlord's prototype stash 11379 | -7/Data Miner | Received God Mode back door access code from Data Miner 11435 | -7/Data Miner | Entered Proximity Caves 11759 | -6/Proximity Caves | Learned Factory stockpile data 11772 | -6/Proximity Caves | Escorted by Enhanced Grunt 12085 | -6/Proximity Caves | Discovered new exit (range 9) 12095 | -6/Proximity Caves | Build established: Derelict-Mutant 12104 | -6/Proximity Caves | Entered Factory 12104 | -6/Factory | Evolved 2 slots: Utility x1, Weapon x1 12106 | -6/Factory | Loaded intel: 28 terminal locations 12469 | -6/Factory | Build established: Derelict-Skirmisher 12977 | -6/Factory | Identified exit to Factory 13894 | -6/Factory | Sucked down chute 13894 | -6/Factory | Entered Waste 13906 | -6/Waste | Spotted C-40 Crusher 13922 | -6/Waste | Destroyed C-40 Crusher 13992 | -6/Waste | Spotted C-40 Crusher 13997 | -6/Waste | Destroyed C-40 Crusher 13997 | -6/Waste | Spotted C-40 Crusher 14002 | -6/Waste | Spotted C-40 Crusher 14007 | -6/Waste | Spotted C-40 Crusher 14010 | -6/Waste | Destroyed C-40 Crusher 14015 | -6/Waste | Destroyed C-40 Crusher 14020 | -6/Waste | Destroyed C-40 Crusher 14089 | -6/Waste | Spotted C-40 Crusher 14108 | -6/Waste | Destroyed C-40 Crusher 14139 | -6/Waste | Discovered new exit (range 15) 14201 | -6/Waste | Entered Factory 14348 | -6/Factory | Build established: Scavenger-Skirmisher 15094 | -6/Factory | Lost 3 parts (1p2u) 15315 | -6/Factory | Spotted B-75 Beast 15373 | -6/Factory | Discovered new exit (range 6) 15381 | -6/Factory | Entered Extension 15527 | -6/Extension | Rescued A7 15538 | -6/Extension | Rescued a captive Derelict 15586 | -6/Extension | Rescued a captive Derelict 15887 | -6/Extension | Spotted B-75 Beast 15901 | -6/Extension | Spotted B-75 Beast 15908 | -6/Extension | Discovered exit to Factory (range 18) 15914 | -6/Extension | Destroyed B-75 Beast 15931 | -6/Extension | Disrupted transfer network 15949 | -6/Extension | Allies destroyed B-75 Beast 16047 | -6/Extension | Extracted ID and sensor layout for unrecognized location from A7's data core 16185 | -6/Extension | Rescued a captive Derelict 16186 | -6/Extension | Rescued a captive Derelict 16257 | -6/Extension | Rescued a captive Derelict 16354 | -6/Extension | Build established: Skirmisher 16389 | -6/Extension | Rescued a captive Derelict 16432 | -6/Extension | Rescued a captive Derelict 16575 | -6/Extension | Discovered exit to Factory (range 10) 16579 | -6/Extension | Discovered new exit (range 6) 16625 | -6/Extension | Entered Cetus 16625 | -6/Cetus | Accompanied by 3 allies 16656 | -6/Cetus | Spotted Cetus Guard 16656 | -6/Cetus | Spotted Cetus Guard 16658 | -6/Cetus | Spotted Cetus Guard 16664 | -6/Cetus | Allies destroyed Cetus Guard 16670 | -6/Cetus | Destroyed Cetus Guard 16678 | -6/Cetus | Destroyed Cetus Guard 16693 | -6/Cetus | Destroyed Cetus Guard 16706 | -6/Cetus | Lost 3 allies 16762 | -6/Cetus | Discovered exit to Factory (range 15) 17181 | -6/Cetus | Discovered new exit (range 16) 17225 | -6/Cetus | Spotted Cetus Guard 17225 | -6/Cetus | Spotted Cetus Guard 17247 | -6/Cetus | Spotted Cetus Guard 17258 | -6/Cetus | Destroyed Cetus Guard 17262 | -6/Cetus | Destroyed Cetus Guard 17263 | -6/Cetus | Spotted Cetus Guard 17266 | -6/Cetus | Destroyed Cetus Guard 17267 | -6/Cetus | Core integrity fell below 50% 17270 | -6/Cetus | Destroyed Cetus Guard 17303 | -6/Cetus | Discovered exit to Factory (range 16) 17703 | -6/Cetus | Met Revision 17 17830 | -6/Cetus | Entered Archives 17845 | -6/Archives | Build established: Scavenger-Tank 17915 | -6/Archives | Lost 5 parts (1p1n3u) 17921 | -6/Archives | Discovered new exit (range 22) 17968 | -6/Archives | Discovered new exit (range 21) 17992 | -6/Archives | Discovered exit to Factory (range 22) 18041 | -6/Archives | Unable to access archive contents 18065 | -6/Archives | Unable to access archive contents 18089 | -6/Archives | Unable to access archive contents 18113 | -6/Archives | Unable to access archive contents 18180 | -6/Archives | Build established: Scavenger-Skirmisher 18289 | -6/Archives | Entered Hub_04(d) 18416 | -6/Hub_04(d) | Lost 7 parts (4n1u2w) 18528 | -6/Hub_04(d) | Discovered exit to Factory (range 19) 18972 | -6/Hub_04(d) | Garrison activated, responded to threat 19075 | -6/Hub_04(d) | Lost 5 parts (5n) 19153 | -6/Hub_04(d) | Garrison activated, responded to threat 19353 | -6/Hub_04(d) | Disrupted transfer network 19510 | -6/Hub_04(d) | Garrison activated, responded to threat 19523 | -6/Hub_04(d) | Network Hub disabled 19528 | -6/Hub_04(d) | Core integrity fell below 20% 19529 | -6/Hub_04(d) | Spotted Lightning 19532 | -6/Hub_04(d) | Spotted Lightning 19534 | -6/Hub_04(d) | Spotted Lightning 19537 | -6/Hub_04(d) | Destroyed by Lightning with EMDS Last Messages --------------- 19523_ Destroyed Imp. Carbon-fiber Leg. 19523_ K-01 Serf destroyed. 19523_ Control Node disabled. 19523_ G-50 Soldier destroyed. 19526_ The unstable cave ceiling collapses. 19526_ Corrupted Wheel crushed. 19527_ YOLO Cannon suddenly explodes. 19527_ Imp. Light Armor Plating destroyed. 19527_ Adv. Terrain Scan Processor destroyed. 19527_ Flexi-carbon Leg destroyed. 19527_ Core damaged (-88). 19534_ System corrupted: Neutrino Core rejected. 19535_ The unstable cave ceiling collapses. 19536_ Penetrated by EMDS Slug. 19536_ Flexi-carbon Leg destroyed. 19536_ Carbon-fiber Leg destroyed. 19536_ Dropped Huge Storage Unit. 19537_ Dropped Adv. Heat Sink. 19537_ Dropped KE Penetrator. 19537_ Penetrated by EMDS Slug. Map ----- +----------------------------------------------------+ | ??????????????????????????????????????????? | | ??????????????????????????????????????????? | | ??????????????????????????????????????????? | | ??????????????????????????????????????????? | | ?????????????????????????? ???????????????? | | ?????????????????????????? ??????????????? | | ????????????????????######;##?????????????? | | ??????????????####### #?????????????? | | ??????????? # #?????????????? | | ????????? ; * #?????????????? | | ????????"";;;;;;;;;;; #?????????????? | | ???????" ;; g #?????????????? | | ???????" ;; g #?????????????? | | ??????"" hi ;; gg #?????????????? | | ?????? " ;; #?????????????? | | ?????? " h ;; #?????????????? | | ?"??# ; ;; #?????????????? | | ????? ; h ;; #?????????????? | | """ # ; ;; #?????????????? | | """ # ; ;; #?????????????? | | # ; % ;; ??????????????? | | """ # ;; ;;; ?????##########? | | """ ###;; ;;;;;;#######* * / # | | """ ## !][ # * # | | """ ## = = [| [[[*! # """ """ # | | ## =%* = !*@!! + # | | /##### = ;=; *!**## # """ """ # | | ####;;;=# g #=%! ![! # # # | | h%%g # # """ """ # | | T * ; # # | | ####;;; ; ; ########### | | #### ;;;;;; ; #? ####? | | ####### ; ; ## """#? | | ###### ## # ; "#? | | ################;;;;;;;;;;;; #? | | !+ ##########;;; ## #? | | *# ### # #########;## """#? | | *#!! ### ##??# # ####? | | [+%= ### ##### ######???? | | %#|* ### + ## #????????? | | # + + # + #????????? | | ########### # ## """" #????????? | | ####### # ## """" #????????? | | ####### # ## """" #????????? | | ################# ## """" #????????? | | ################# + #????????? | | ################# ###########????????? | | ###### # #??????????????????? | | ###### # #??????????????????? | | ###### " # #??????????????????? | +----------------------------------------------------+ Best States ------------- Heat Dissipation 75 Energy Generation 25 Energy Capacity 350 Matter Stores 500 Matter Capacity 500 Sight Range 22 Terrain Scan Range 20 Terrain Scan Density 210 Corruption Block 7 Armor Coverage 600 Resistance: KI 20 Weapon Shielding 66 Evasion (%) 55 Armor Integrity Analysis 30 Recoil Reduction 8 Offensive Hacking 10 Authchip Count 3 Item Schematics ----------------- Cld. Cesium-ion Thruster | -7/Data Miner | Free Exp. Weapon Shielding | -7/Data Miner | Free Combat Drone Bay | -7/Data Miner | Free Lgt. Regenerative Plating | -7/Data Miner | Free Imp. Heavy Machine Gun | -7/Data Miner | Free Nuclear Pulse Array | -7/Data Miner | Free Imp. Thermal Shield | -7/Data Miner | Free Disruptor Cannon | -7/Data Miner | Free Graphene Brace | -7/Data Miner | Free Robot Schematics ------------------ A-15 Conveyor | -7/Data Miner | Free H-55 Commando | -7/Data Miner | Free X-57 Shotgunner | -7/Data Miner | Free S-27 Virus | -7/Data Miner | Free Fabricated ------------ G-47 Trooper | x3 | -7/Factory | Preloaded, Authchip Alien Tech Used ----------------- None Achievements -------------- Prison Break Quantum Hacking Revising The Future Challenges ------------ None Game ------ Seed NeutronWeldingFemtoactuators Manual? 0 Play Time 02:23:18 Cumulative 69.0 hours Start 2024.04.30 @ 22:09:15 End 2024.05.01 @ 00:54:20 Sessions 5 Manual Loads 0 Difficulty Rogue Special Mode None Game No. 102 Rogue 97 Adventurer 5 Explorer 0 Win Type - Total 2 Types 1/0/0/1/0/0/0/0/0 Lore% 37 Gallery% 58 Achievement% 45 Wizard Run 0 Options --------- Layout 0 ASCII 0 Keyboard 0 Movement Mouse Keybinds 0 Fullscreen 1 Font 24/Smallcaps Map View 76x50 Zoom Use 3% Tactical HUD 1 Map Filters NONE Filters NONE Steam 1 RUN: de8516f2-afba-400c-8f67-bb351486a634